bitfinex-derivatives/quotes_BTCF0:USTF0_20241116
["timestamp","ask_amount","ask_price","bid_price","bid_amount"]
[1731757237339,0.05335087,91147.0,91144.0,0.06830193]
[1731757237539,0.05335087,91146.0,91144.0,0.06830193]
[1731757237745,0.05334801,91145.0,91144.0,0.06830193]
[1731757238239,0.16298548,91145.0,91144.0,0.06830193]
[1731757238447,0.3608,91148.0,91144.0,0.06830193]
[1731757238643,0.16300482,91145.0,91144.0,0.06830193]
[1731757238844,0.3608,91148.0,91144.0,0.06830193]
[1731757241345,0.3608,91148.0,91144.0,0.2652919]
[1731757242540,0.3608,91148.0,91145.0,0.19698997]
[1731757243447,0.3608,91148.0,91147.0,0.19698997]
[1731757243658,0.3608,91148.0,91146.0,0.19698997]
[1731757244339,0.16300482,91149.0,91144.0,0.06830193]
[1731757244537,0.16300482,91150.0,91145.0,0.01714922]
[1731757244756,0.16300482,91150.0,91149.0,0.26579328]
[1731757244956,0.16300482,91153.0,91149.0,0.08545115]
[1731757245247,0.16300482,91153.0,91151.0,0.19748026]
[1731757245449,0.16300482,91153.0,91152.0,0.19748026]
[1731757245835,0.16300482,91153.0,91149.0,0.06830193]
[1731757245836,0.24954643,91153.0,91149.0,0.06830193]
[1731757246046,0.0324,91156.0,91150.0,0.01714806]
[1731757246047,0.05334253,91152.0,91150.0,0.01714806]
[1731757246250,0.05334253,91152.0,91144.0,0.19748026]
[1731757246251,0.05334253,91151.0,91144.0,0.19748026]
[1731757246439,0.16339591,91150.0,91146.0,0.19748026]
[1731757246639,0.16339591,91152.0,91148.0,0.19748026]
[1731757246847,0.16339591,91152.0,91149.0,0.01714813]
[1731757247042,0.16339591,91153.0,91150.0,0.01714813]
[1731757247346,0.16339591,91155.0,91152.0,0.13660386]
[1731757247534,0.16339591,91153.0,91148.0,0.0051]
[1731757247741,0.16339591,91153.0,91152.0,0.13660386]
[1731757248864,0.16333324,91153.0,91152.0,0.13660386]
[1731757249157,0.1962039,91159.0,91152.0,0.13660386]
[1731757249452,0.05334062,91158.0,91157.0,0.06830193]
[1731757250048,0.19628698,91161.0,91157.0,0.06830193]
[1731757250246,0.05334062,91160.0,91157.0,0.06830193]
[1731757250559,0.1962039,91160.0,91157.0,0.06830193]
[1731757250849,0.24954452,91160.0,91157.0,0.06830193]
[1731757251243,0.05334062,91159.0,91157.0,0.06830193]
[1731757251450,0.05334062,91158.0,91157.0,0.06830193]
[1731757252048,0.0534237,91161.0,91157.0,0.06830193]
[1731757252243,0.05334062,91160.0,91157.0,0.06830193]
[1731757252449,0.05334062,91159.0,91157.0,0.06830193]
[1731757252660,0.05334062,91158.0,91157.0,0.06830193]
[1731757252857,0.0534237,91161.0,91157.0,0.06830193]
[1731757253555,0.05334062,91160.0,91157.0,0.06830193]
[1731757253753,8.308e-05,91161.0,91157.0,0.06830193]
[1731757253959,0.16342667,91159.0,91157.0,0.06830193]
[1731757254150,0.16342667,91158.0,91157.0,0.06830193]
[1731757255149,0.16342667,91158.0,91153.0,0.19748026]
[1731757255355,0.0639,91157.0,91153.0,0.19748026]
[1731757255558,0.22732667,91157.0,91151.0,0.19748026]
[1731757255759,0.16342667,91156.0,91151.0,0.19748026]
[1731757255955,0.16342667,91155.0,91148.0,0.27088219]
[1731757256158,0.16342667,91153.0,91147.0,0.19748026]
[1731757256360,0.16342667,91153.0,91146.0,0.19748026]
[1731757256764,0.16342667,91153.0,91143.0,0.0051]
[1731757256765,0.16342667,91148.0,91143.0,0.0051]
[1731757256960,0.19552667,91147.0,91141.0,0.06830193]
[1731757257162,0.19552667,91147.0,91142.0,0.06830193]
[1731757257353,0.0321,91147.0,91142.0,0.06830193]
[1731757260768,0.1962039,91145.0,91142.0,0.06830193]
[1731757261064,0.05334805,91144.0,91142.0,0.06830193]
[1731757261460,0.05334987,91143.0,91137.0,0.0051]
[1731757261657,0.16322388,91138.0,91136.0,0.06830193]
[1731757262160,0.16322388,91137.0,91136.0,0.06830193]
[1731757262361,0.16322388,91138.0,91136.0,0.06830193]
[1731757262564,0.1962039,91144.0,91135.0,0.05545328]
[1731757262565,0.16322388,91139.0,91135.0,0.05545328]
[1731757262766,0.16322388,91139.0,91134.0,0.13660386]
[1731757262961,0.16322388,91140.0,91134.0,0.06830193]
[1731757263169,0.16322388,91140.0,91139.0,0.06830193]
[1731757263463,0.16322388,91141.0,91139.0,0.06830193]
[1731757264058,0.16322388,91140.0,91132.0,0.4573]
[1731757264261,0.16322388,91140.0,91139.0,0.06830193]
[1731757264565,0.16322388,91140.0,91133.0,0.3608]
[1731757264763,0.16322388,91140.0,91139.0,0.06830193]
[1731757265568,0.16322388,91141.0,91133.0,0.3608]
[1731757265756,0.16322388,91141.0,91139.0,0.06830193]
[1731757265962,0.16322388,91141.0,91134.0,0.06830193]
[1731757266163,0.16322388,91140.0,91134.0,0.06830193]
[1731757266469,0.16322388,91138.0,91134.0,0.06830193]
[1731757266967,0.16322388,91137.0,91134.0,0.06830193]
[1731757267163,0.16322388,91138.0,91134.0,0.06830193]
[1731757267358,0.0319,91136.0,91134.0,0.06830193]
[1731757267568,0.0319,91136.0,91127.0,0.0051]
[1731757267762,0.19512388,91136.0,91127.0,0.0051]
[1731757267961,0.16322388,91135.0,91127.0,0.0051]
[1731757268473,0.16322388,91133.0,91127.0,0.0051]
[1731757268674,0.16322388,91133.0,91126.0,0.12537674]
[1731757268862,0.0319,91136.0,91126.0,0.12537674]
[1731757269062,0.0319,91136.0,91126.0,0.322857]
[1731757269265,0.0319,91136.0,91132.0,0.06830193]
[1731757270265,0.0319,91136.0,91131.0,0.06830193]
[1731757272472,0.06830193,91135.0,91126.0,0.0016456]
[1731757272769,0.06830193,91128.0,91126.0,0.0016456]
[1731757272970,0.0322,91127.0,91126.0,0.0016456]
[1731757274275,0.0322,91127.0,91122.0,0.0051]
[1731757274482,0.0322,91127.0,91120.0,1.00068]
[1731757274779,0.06830193,91126.0,91120.0,1.0]
[1731757275863,0.0322,91127.0,91120.0,1.06830193]
[1731757276879,0.0322,91127.0,91125.0,0.06830193]
[1731757277476,0.3608,91130.0,91125.0,0.06830193]
[1731757278587,0.0051,91136.0,91125.0,0.06830193]
[1731757278775,0.0051,91141.0,91134.0,0.06830193]
[1731757278977,0.5570039,91150.0,91140.0,0.06830193]
[1731757278978,0.00064,91150.0,91140.0,0.06830193]
[1731757279174,0.05611131,91151.0,91149.0,0.06830193]
[1731757279381,0.031,91156.0,91149.0,0.06830193]
[1731757280086,0.36300621,91157.0,91155.0,0.42910193]
[1731757280087,0.16503242,91157.0,91155.0,0.42910193]
[1731757280285,0.0016462,91157.0,91156.0,0.0315]
[1731757281085,0.16282621,91164.0,91156.0,0.0315]
[1731757281280,0.0051,91168.0,91160.0,0.06830193]
[1731757282786,0.0051,91168.0,91158.0,0.10399721]
[1731757283184,0.0051,91168.0,91159.0,0.0318]
[1731757284290,0.3608,91167.0,91157.0,0.08952]
[1731757288687,0.3608,91167.0,91155.0,0.3608]
[1731757288889,0.3608,91156.0,91147.0,0.0318]
[1731757289091,0.3608,91156.0,91148.0,0.08952]
[1731757289293,0.3608,91156.0,91147.0,0.0318]
[1731757289599,0.3608,91156.0,91141.0,0.12112]
[1731757290798,0.3608,91155.0,91145.0,0.10399721]
[1731757292599,0.3608,91155.0,91141.0,0.3608]
[1731757292786,0.3608,91155.0,91138.0,0.10399721]
[1731757293100,0.3608,91154.0,91136.0,0.00164566]
[1731757293291,0.3608,91143.0,91131.0,0.46479721]
[1731757296489,0.0302,91142.0,91131.0,0.46479721]
[1731757296898,0.0328,91141.0,91131.0,0.46479721]
[1731757297193,0.0328,91141.0,91131.0,0.10399721]
[1731757297396,0.0328,91141.0,91122.0,0.0312]
[1731757297397,0.0328,91141.0,91123.0,0.10399721]
[1731757297597,0.3608,91132.0,91123.0,0.10399721]
[1731757299398,0.3608,91132.0,91121.0,0.08952]
[1731757299599,0.3608,91132.0,91120.0,1.00068]
[1731757299898,0.3608,91132.0,91120.0,1.0]
[1731757302700,0.10399721,91127.0,91120.0,1.0]
[1731757302894,0.3608,91121.0,91120.0,1.0]
[1731757303700,0.32924,91120.0,91105.0,0.00064]
[1731757303995,0.52329911,91106.0,91088.0,0.10399721]
[1731757304199,0.08988,91105.0,91100.0,0.0501]
[1731757304691,0.16261135,91104.0,91100.0,0.0501]
[1731757305297,0.00011224,91104.0,91100.0,0.0501]
[1731757305689,0.16261135,91104.0,91100.0,0.0501]
[1731757305887,0.16249911,91103.0,91100.0,0.0501]
[1731757306100,0.00011224,91104.0,91100.0,0.0501]
[1731757307404,0.08988,91103.0,91100.0,0.0501]
[1731757307697,0.08999224,91104.0,91100.0,0.0501]
[1731757309507,0.00011224,91104.0,91100.0,0.0501]
[1731757311001,0.00011224,91104.0,91103.0,0.10399721]
[1731757313296,0.0051,91107.0,91103.0,0.10399721]
[1731757313500,0.0051,91107.0,91104.0,0.3608]
[1731757313697,0.32928,91106.0,91100.0,0.05082]
[1731757313903,0.3608,91104.0,91100.0,0.0501]
[1731757314208,0.00012782,91103.0,91100.0,0.0501]
[1731757314790,0.32944782,91103.0,91100.0,0.0501]
[1731757315103,0.00012782,91103.0,91100.0,0.0501]
[1731757316795,0.03092782,91103.0,91100.0,0.0501]
[1731757317695,0.32932,91102.0,91079.0,0.13699721]
[1731757317998,0.3608,91092.0,91086.0,0.0051]
[1731757318200,0.3608,91092.0,91079.0,0.13699721]
[1731757319597,0.3608,91084.0,91079.0,0.033]
[1731757321409,0.3608,91084.0,91073.0,0.0051]
[1731757321410,0.55471721,91084.0,91073.0,0.0051]
[1731757321715,0.3608,91081.0,91054.0,0.0302]
[1731757321898,0.3608,91070.0,91054.0,0.0302]
[1731757322406,0.3608,91070.0,91054.0,0.08534843]
[1731757322709,0.3608,91070.0,91060.0,0.10410718]
[1731757323618,0.3608,91070.0,91054.0,0.0302]
[1731757323619,0.3608,91061.0,91058.0,0.08992]
[1731757323809,0.3608,91061.0,91057.0,0.08992]
[1731757324105,0.3608,91061.0,91058.0,0.08992]
[1731757324309,0.3608,91061.0,91046.0,0.3608]
[1731757324498,0.3608,91061.0,91047.0,0.09000907]
[1731757325405,0.3608,91061.0,91060.0,0.10399721]
[1731757337914,0.09508,91078.0,91060.0,0.10399721]
[1731757338219,0.7216,91061.0,91060.0,0.10399721]
[1731757344321,0.7216,91061.0,91060.0,0.36630377]
[1731757344521,0.7216,91061.0,91060.0,0.26230656]
[1731757344822,0.7216,91061.0,91059.0,0.26230656]
[1731757346137,0.7216,91061.0,91058.0,0.26230656]
[1731757346321,0.3608,91061.0,91059.0,0.26230656]
[1731757346519,0.7216,91061.0,91059.0,0.26230656]
[1731757346719,0.01070647,91060.0,91059.0,0.26230656]
[1731757347423,0.01070647,91060.0,91057.0,0.10399721]
[1731757347620,0.01070647,91059.0,91057.0,0.10399721]
[1731757347820,0.72216001,91061.0,91057.0,0.10399721]
[1731757348018,0.7216,91061.0,91059.0,0.26320638]
[1731757348328,0.7216,91061.0,91060.0,0.26320638]
[1731757348521,0.7216,91061.0,91057.0,0.10399721]
[1731757348522,0.73220348,91061.0,91057.0,0.10399721]
[1731757348723,0.01060348,91060.0,91057.0,0.10399721]
[1731757348923,0.01060348,91059.0,91057.0,0.10399721]
[1731757349128,0.72216001,91061.0,91057.0,0.10399721]
[1731757349425,0.01056752,91060.0,91057.0,0.10399721]
[1731757349621,0.7216,91061.0,91057.0,0.10399721]
[1731757349622,0.01056752,91059.0,91057.0,0.10399721]
[1731757349816,0.01056752,91058.0,91057.0,0.10399721]
[1731757352430,0.7216,91061.0,91057.0,0.10399721]
[1731757352627,0.0106739,91060.0,91057.0,0.10399721]
[1731757352933,0.7216,91061.0,91057.0,0.10399721]
[1731757353126,0.01076135,91059.0,91057.0,0.10399721]
[1731757353328,0.7216,91061.0,91057.0,0.10399721]
[1731757353329,0.01076135,91060.0,91058.0,0.26339019]
[1731757353531,0.7216,91061.0,91057.0,0.36738153]
[1731757353825,0.7216,91061.0,91057.0,0.10399721]
[1731757354218,0.7216,91061.0,91057.0,0.36738153]
[1731757354420,0.7216,91061.0,91057.0,0.10399721]
[1731757355429,0.7216,91061.0,91057.0,0.36738153]
[1731757355625,0.7216,91061.0,91058.0,0.26338432]
[1731757355929,0.7216,91061.0,91060.0,0.10399721]
[1731757357534,0.7216,91061.0,91060.0,0.36738153]
[1731757357728,0.7216,91061.0,91060.0,0.10399721]
[1731757366032,0.3608,91061.0,91060.0,0.10399721]
[1731757367243,0.3608,91061.0,91058.0,0.3278832]
[1731757367448,0.3608,91061.0,91056.0,0.3278832]
[1731757367650,0.3608,91061.0,91055.0,0.3278832]
[1731757367940,0.3608,91061.0,91053.0,0.3278832]
[1731757368133,0.3608,91061.0,91051.0,0.10399721]
[1731757368134,0.3608,91054.0,91051.0,0.10399721]
[1731757368337,0.3608,91054.0,91053.0,0.32938252]
[1731757368541,0.3608,91054.0,91053.0,0.36693669]
[1731757368744,0.3608,91054.0,91053.0,0.43533052]
[1731757371656,0.3608,91054.0,91053.0,0.36693669]
[1731757372136,0.3608,91054.0,91052.0,0.3293713]
[1731757372341,0.3608,91054.0,91047.0,0.0684829]
[1731757372342,0.3608,91054.0,91053.0,0.06839383]
[1731757372942,0.3608,91054.0,91051.0,0.3293713]
[1731757373142,0.3608,91054.0,91053.0,0.06839383]
[1731757373751,0.3608,91054.0,91050.0,0.26347322]
[1731757374343,0.3608,91054.0,91049.0,0.33186705]
[1731757374546,0.3608,91050.0,91049.0,0.33186705]
[1731757374747,0.3608,91050.0,91049.0,0.06839383]
[1731757375145,0.37151508,91050.0,91049.0,0.06839383]
[1731757375852,0.37151508,91050.0,91049.0,0.33183768]
[1731757376167,0.37151508,91050.0,91049.0,0.06839383]
[1731757377744,0.37151508,91050.0,91048.0,0.0324]
[1731757377945,0.3608,91050.0,91049.0,0.06839383]
[1731757378446,0.37142564,91050.0,91049.0,0.06839383]
[1731757378841,0.3608,91050.0,91049.0,0.06839383]
[1731757379653,0.3608,91050.0,91047.0,8.907e-05]
[1731757379951,0.3608,91050.0,91049.0,0.06839383]
[1731757381448,0.3608,91050.0,91049.0,0.42611627]
[1731757383160,0.3608,91054.0,91049.0,0.8239901]
[1731757383347,0.3608,91054.0,91050.0,0.35772244]
[1731757383548,0.3608,91054.0,91051.0,0.35772244]
[1731757383750,0.3608,91054.0,91052.0,0.78306888]
[1731757383952,0.3608,91054.0,91053.0,0.78306888]
[1731757384353,0.3608,91054.0,91053.0,0.75273372]
[1731757384559,0.3608,91054.0,91053.0,0.35772244]
[1731757384959,0.3608,91054.0,91053.0,0.49012244]
[1731757385161,0.3608,91054.0,91053.0,0.98313709]
[1731757386163,0.3608,91054.0,91053.0,0.55851627]
[1731757386351,0.3608,91054.0,91053.0,0.55641125]
[1731757386554,0.3608,91054.0,91053.0,0.95125108]
[1731757386860,0.3608,91054.0,91053.0,0.55641125]
[1731757387560,0.3608,91054.0,91053.0,0.52361125]
[1731757388563,0.3608,91054.0,91053.0,0.85266207]
[1731757388768,0.3608,91054.0,91053.0,0.49704465]
[1731757389265,0.3608,91054.0,91053.0,0.52294704]
[1731757391370,0.3608,91054.0,91053.0,0.16799383]
[1731757391968,0.3608,91054.0,91053.0,0.16811383]
[1731757393170,0.3608,91054.0,91051.0,0.32902356]
[1731757393467,0.3608,91054.0,91051.0,0.06839383]
[1731757395163,0.3608,91054.0,91053.0,0.06839383]
[1731757397168,0.37202854,91054.0,91053.0,0.06839383]
[1731757398364,0.3608,91054.0,91053.0,0.06839383]
[1731757401261,0.37225864,91054.0,91053.0,0.06839383]
[1731757403062,0.3608,91054.0,91053.0,0.06839383]
[1731757404664,0.37173059,91054.0,91053.0,0.06839383]
[1731757405168,0.3608,91054.0,91053.0,0.06839383]
[1731757407860,0.3608,91054.0,91053.0,0.13678766]
[1731757408567,0.3608,91069.0,91053.0,1.15995308]
[1731757408763,0.3608,91069.0,91060.0,0.39984775]
[1731757408965,0.0618,91078.0,91060.0,0.13678766]
[1731757409167,0.0313,91078.0,91077.0,0.06839383]
[1731757409371,0.3608,91081.0,91077.0,0.06839383]
[1731757409669,0.3608,91079.0,91074.0,0.06839383]
[1731757410181,0.01070984,91078.0,91074.0,0.06839383]
[1731757410680,0.01070984,91077.0,91074.0,0.06839383]
[1731757410866,0.52329911,91079.0,91074.0,0.06839383]
[1731757411068,0.3608,91079.0,91074.0,0.06839383]
[1731757411270,0.52329911,91079.0,91074.0,0.06839383]
[1731757411470,0.3608,91079.0,91074.0,0.06839383]
[1731757412977,0.16249911,91077.0,91074.0,0.06839383]
[1731757413768,0.16249911,91076.0,91074.0,0.06839383]
[1731757413969,0.16249911,91077.0,91074.0,0.06839383]
[1731757415377,0.16249911,91076.0,91074.0,0.06839383]
[1731757415769,0.16249911,91077.0,91074.0,0.06839383]
[1731757416083,0.16249911,91075.0,91074.0,0.06839383]
[1731757416474,0.3608,91079.0,91074.0,0.06839383]
[1731757416475,0.16249911,91077.0,91074.0,0.06839383]
[1731757416672,0.3608,91079.0,91074.0,0.01182021]
[1731757416673,0.05338453,91076.0,91074.0,0.01182021]
[1731757416981,0.3608,91079.0,91074.0,0.01182021]
[1731757417180,0.16285898,91075.0,91074.0,0.01182021]
[1731757417570,0.16285898,91076.0,91074.0,0.01182021]
[1731757417774,0.3608,91079.0,91074.0,0.01182021]
[1731757417775,0.16285898,91077.0,91074.0,0.01182021]
[1731757417977,0.16285898,91076.0,91074.0,0.01182021]
[1731757418791,0.3608,91079.0,91074.0,0.01182021]
[1731757419081,0.3608,91075.0,91074.0,0.01182021]
[1731757419291,0.3608,91075.0,91074.0,0.06839383]
[1731757419479,0.3608,91075.0,91070.0,0.09972]
[1731757419677,0.3608,91075.0,91074.0,0.06839383]
[1731757421481,0.3608,91075.0,91067.0,0.05427985]
[1731757421685,0.3608,91075.0,91072.0,0.06839383]
[1731757423677,0.0329,91087.0,91073.0,0.0319]
[1731757423875,0.3608,91081.0,91073.0,0.0319]
[1731757424280,0.3608,91081.0,91074.0,0.10276]
[1731757425583,0.3608,91081.0,91080.0,0.13678766]
[1731757426274,0.0051,91089.0,91080.0,0.13678766]
[1731757426475,0.00164753,91090.0,91088.0,0.06839383]
[1731757426677,0.00164753,91090.0,91088.0,0.17111383]
[1731757427177,0.3608,91092.0,91088.0,0.17111383]
[1731757428988,0.3608,91092.0,91089.0,0.0306]
[1731757431489,0.28938351,91105.0,91091.0,0.3608]
[1731757431688,0.28938351,91105.0,91098.0,0.06839383]
[1731757432279,0.34356571,91105.0,91098.0,0.06839383]
[1731757432478,8.73e-05,91100.0,91098.0,0.06839383]
[1731757433889,8.73e-05,91100.0,91099.0,0.3608978]
[1731757436892,8.73e-05,91100.0,91099.0,0.53201163]
[1731757438793,8.73e-05,91100.0,91099.0,0.4636178]
[1731757439485,8.73e-05,91100.0,91099.0,0.8244178]
[1731757439680,8.73e-05,91100.0,91099.0,0.7216978]
[1731757439886,8.73e-05,91100.0,91099.0,0.8244178]
[1731757444687,8.73e-05,91100.0,91099.0,0.4636178]
[1731757445899,8.73e-05,91100.0,91099.0,0.53201163]
[1731757448489,8.73e-05,91100.0,91099.0,0.4636178]
[1731757452103,8.73e-05,91100.0,91099.0,0.53201163]
[1731757454201,8.73e-05,91100.0,91099.0,0.3608978]
[1731757454504,8.73e-05,91100.0,91099.0,0.4607778]
[1731757455315,8.73e-05,91100.0,91099.0,0.3608978]
[1731757455498,0.01079391,91100.0,91099.0,0.4607778]
[1731757459213,0.01079391,91100.0,91099.0,0.0999778]
[1731757459708,0.42487123,91100.0,91099.0,0.0999778]
[1731757459900,0.42487123,91100.0,91099.0,9.78e-05]
[1731757460100,0.82258506,91100.0,91099.0,9.78e-05]
[1731757460311,0.95526665,91100.0,91087.0,0.0051]
[1731757460607,0.06839383,91092.0,91084.0,0.09988]
[1731757460819,0.3608,91088.0,91084.0,0.09988]
[1731757461108,0.04211058,91087.0,91079.0,0.3608]
[1731757461309,0.01061058,91086.0,91080.0,0.07004034]
[1731757461510,0.0315,91087.0,91080.0,0.00164651]
[1731757461511,0.01061058,91085.0,91080.0,0.00164651]
[1731757461696,0.01061058,91084.0,91080.0,0.00164651]
[1731757461897,0.01061058,91083.0,91080.0,0.00164651]
[1731757462115,0.3608,91088.0,91080.0,0.00164651]
[1731757462116,0.01061058,91082.0,91080.0,0.00164651]
[1731757462312,0.3608,91088.0,91081.0,0.06839383]
[1731757462505,0.3608,91088.0,91087.0,0.06839383]
[1731757462699,0.37123544,91088.0,91087.0,0.06839383]
[1731757463716,0.01043544,91088.0,91087.0,0.06839383]
[1731757463917,0.17346461,91088.0,91087.0,0.06839383]
[1731757465100,0.01043544,91088.0,91087.0,0.06839383]
[1731757465303,0.01043544,91088.0,91080.0,0.15464599]
[1731757465511,0.01043544,91087.0,91080.0,0.15464599]
[1731757465707,0.16302917,91086.0,91080.0,0.15464599]
[1731757465913,0.17346461,91085.0,91080.0,0.15464599]
[1731757466226,0.01043544,91084.0,91080.0,0.15464599]
[1731757466416,0.01043544,91085.0,91080.0,0.15464599]
[1731757466715,0.033,91083.0,91080.0,0.15464599]
[1731757466910,0.01043544,91082.0,91080.0,0.15464599]
[1731757467111,0.01043544,91082.0,91080.0,0.05476599]
[1731757467316,0.01043544,91082.0,91079.0,0.42983383]
[1731757467511,0.01043544,91082.0,91079.0,0.42919383]
[1731757468503,0.033,91083.0,91079.0,0.42919383]
[1731757469620,0.033,91083.0,91079.0,0.48312447]
[1731757472218,0.033,91083.0,91079.0,0.41473064]
[1731757472516,0.010985,91082.0,91079.0,0.41473064]
[1731757472717,0.010985,91081.0,91079.0,0.41473064]
[1731757473017,0.033,91083.0,91079.0,0.41473064]
[1731757473018,0.010985,91080.0,91079.0,0.05393064]
[1731757473316,0.010985,91080.0,91078.0,0.06850059]
[1731757473317,0.01106786,91080.0,91078.0,0.06850059]
[1731757473524,0.01106786,91079.0,91078.0,0.06850059]
[1731757474111,0.033,91083.0,91078.0,0.06850059]
[1731757474413,0.01104092,91082.0,91078.0,0.12346899]
[1731757474618,0.033,91083.0,91078.0,0.12346899]
[1731757474812,0.0317,91090.0,91078.0,0.05507516]
[1731757475022,0.0109769,91089.0,91083.0,0.06839383]
[1731757475314,0.0317,91090.0,91083.0,0.06839383]
[1731757475518,0.01099846,91089.0,91083.0,0.06839383]
[1731757475712,0.0317,91090.0,91083.0,0.06839383]
[1731757475912,0.01099847,91089.0,91083.0,0.06839383]
[1731757476111,0.0317,91090.0,91078.0,0.05507516]
[1731757476317,0.01099856,91089.0,91083.0,0.06839383]
[1731757476516,0.0289367,91088.0,91083.0,0.06839383]
[1731757476712,0.0111295,91087.0,91083.0,0.06839383]
[1731757476919,0.0111295,91086.0,91083.0,0.06839383]
[1731757477117,0.0317,91090.0,91083.0,0.06839383]
[1731757477118,0.0111295,91085.0,91083.0,0.06839383]
[1731757477314,0.19472917,91090.0,91083.0,0.06839383]
[1731757477315,0.0111295,91084.0,91083.0,0.06839383]
[1731757478025,0.3719295,91089.0,91083.0,0.06839383]
[1731757478223,0.02897888,91088.0,91083.0,0.06839383]
[1731757479722,0.3608,91089.0,91083.0,0.06839383]
[1731757479918,0.01799003,91087.0,91083.0,0.06839383]
[1731757480223,0.02923388,91086.0,91083.0,0.06839383]
[1731757480417,0.01799008,91085.0,91083.0,0.06839383]
[1731757480624,0.02923388,91084.0,91083.0,0.06839383]
[1731757481213,0.0112438,91084.0,91083.0,0.06839383]
[1731757481418,0.01791925,91084.0,91083.0,0.06839383]
[1731757481618,0.0112438,91084.0,91083.0,0.06839383]
[1731757483227,0.01116809,91084.0,91083.0,0.06839383]
[1731757483523,0.01116809,91087.0,91083.0,0.06839383]
[1731757483724,0.01116809,91086.0,91083.0,0.06839383]
[1731757483929,0.01116809,91085.0,91083.0,0.06839383]
[1731757484125,0.01116809,91084.0,91083.0,0.06839383]
[1731757484623,0.01116809,91087.0,91083.0,0.06839383]
[1731757484923,0.01116809,91086.0,91083.0,0.06839383]
[1731757485122,0.3608,91088.0,91083.0,0.06839383]
[1731757485123,0.01116809,91085.0,91083.0,0.06839383]
[1731757485329,0.01116809,91084.0,91083.0,0.06839383]
[1731757485528,0.3608,91088.0,91083.0,0.06839383]
[1731757485529,0.01116809,91087.0,91083.0,0.06839383]
[1731757485714,0.02928158,91086.0,91083.0,0.06839383]
[1731757486030,0.08266179,91085.0,91083.0,0.06839383]
[1731757486225,0.0645483,91084.0,91083.0,0.06839383]
[1731757486424,0.0645483,91084.0,91078.0,0.05507516]
[1731757486730,0.16313041,91079.0,91078.0,0.05507516]
[1731757487024,0.01116809,91079.0,91078.0,0.05507516]
[1731757487227,0.1742985,91080.0,91078.0,0.05507516]
[1731757487427,0.01116809,91079.0,91078.0,0.05507516]
[1731757487629,0.17443124,91079.0,91078.0,0.05507516]
[1731757488317,0.01130083,91079.0,91078.0,0.05507516]
[1731757488523,0.05338021,91079.0,91078.0,0.05507516]
[1731757488823,0.19574627,91083.0,91078.0,0.05507516]
[1731757489028,0.01098249,91082.0,91078.0,0.05507516]
[1731757489324,0.0643627,91081.0,91078.0,0.05507516]
[1731757489525,0.0643627,91080.0,91078.0,0.05507516]
[1731757489727,0.05338021,91079.0,91078.0,0.05507516]
[1731757489919,0.01099943,91079.0,91078.0,0.05507516]
[1731757490123,0.06437977,91079.0,91078.0,0.05507516]
[1731757490327,0.05338021,91079.0,91078.0,0.05507516]
[1731757490731,0.20674671,91079.0,91078.0,0.05507516]
[1731757490932,0.06438095,91079.0,91078.0,0.05507516]
[1731757491128,0.05338051,91079.0,91078.0,0.05507516]
[1731757491434,0.19597872,91079.0,91078.0,0.05507516]
[1731757491633,0.0641285,91079.0,91078.0,0.05507516]
[1731757491826,0.05338051,91079.0,91078.0,0.05507516]
[1731757492027,0.01074809,91079.0,91078.0,0.05507516]
[1731757492327,0.26010732,91079.0,91078.0,0.05507516]
[1731757492527,0.26010448,91079.0,91078.0,0.05507516]
[1731757492929,0.0641286,91079.0,91078.0,0.05507516]
[1731757493229,0.26010524,91079.0,91078.0,0.05507516]
[1731757493537,0.0641301,91079.0,91078.0,0.05507516]
[1731757493828,0.01074959,91079.0,91078.0,0.05507516]
[1731757494331,0.01074959,91079.0,91078.0,0.25266975]
[1731757494534,0.01074959,91079.0,91078.0,0.05507516]
[1731757495529,0.19131196,91081.0,91078.0,0.05507516]
[1731757495729,0.01074959,91080.0,91078.0,0.05507516]
[1731757495926,0.01074959,91079.0,91078.0,0.05507516]
[1731757496631,0.01074959,91079.0,91078.0,0.00010676]
[1731757496632,0.13252605,91079.0,91078.0,0.00010676]
[1731757496828,0.07914342,91079.0,91078.0,0.00010676]
[1731757497026,0.12177646,91079.0,91078.0,0.00010676]
[1731757497227,0.13248191,91079.0,91078.0,0.00010676]
[1731757497433,0.20974501,91079.0,91078.0,0.00010676]
[1731757497630,0.33512642,91079.0,91078.0,0.00010676]
[1731757498034,0.20448069,91079.0,91078.0,0.00010676]
[1731757498732,0.40026106,91079.0,91078.0,0.00010676]
[1731757499324,0.27706478,91079.0,91078.0,0.00010676]
[1731757499527,0.08128441,91079.0,91078.0,0.00010676]
[1731757500631,0.08193193,91079.0,91078.0,0.00010676]
[1731757500837,0.21335034,91079.0,91078.0,0.00010676]
[1731757501025,0.08193593,91079.0,91078.0,0.00010676]
[1731757501333,0.0819404,91079.0,91078.0,0.00010676]
[1731757501527,0.06436768,91079.0,91078.0,0.00010676]
[1731757502134,0.05338026,91082.0,91078.0,0.00010676]
[1731757502333,0.16324036,91080.0,91078.0,0.13689442]
[1731757502525,0.16324036,91083.0,91079.0,0.06839383]
[1731757502731,0.16324036,91086.0,91080.0,0.06839383]
[1731757502927,0.0016469,91098.0,91085.0,0.06839383]
[1731757502928,0.16324036,91087.0,91085.0,0.06839383]
[1731757503236,0.16324036,91087.0,91078.0,0.42998059]
[1731757503237,0.16324036,91087.0,91086.0,0.42919383]
[1731757503533,0.16324036,91088.0,91086.0,0.42919383]
[1731757503928,0.16324036,91088.0,91086.0,0.06839383]
[1731757504236,0.16324036,91088.0,91086.0,0.42919383]
[1731757504424,0.16324036,91089.0,91086.0,0.42919383]
[1731757505026,0.16324036,91091.0,91086.0,0.42919383]
[1731757505532,0.16324036,91092.0,91086.0,0.42919383]
[1731757505832,0.19750796,91098.0,91086.0,0.42919383]
[1731757505833,0.16324036,91090.0,91086.0,0.42919383]
[1731757506033,0.16324036,91091.0,91086.0,0.42919383]
[1731757506825,0.16324036,91091.0,91086.0,0.3608]
[1731757507535,0.16324036,91092.0,91086.0,0.3608]
[1731757508928,0.16488726,91098.0,91085.0,0.06839383]
[1731757509239,0.16488726,91098.0,91086.0,0.3608]
[1731757509439,0.0016469,91098.0,91086.0,0.3608]
[1731757511829,0.0016469,91098.0,91086.0,0.55842914]
[1731757512435,0.0016469,91098.0,91090.0,0.06839383]
[1731757512737,0.0016469,91098.0,91086.0,0.55842914]
[1731757512738,0.0016469,91098.0,91096.0,0.06839383]
[1731757512944,0.0016469,91098.0,91097.0,0.3608]
[1731757514139,0.0016469,91098.0,91097.0,0.52451383]
[1731757514343,0.0016469,91098.0,91097.0,0.48882]
[1731757515643,0.0016469,91098.0,91097.0,0.55721383]
[1731757515839,0.0016469,91098.0,91097.0,0.75484297]
[1731757516044,0.0016469,91098.0,91097.0,0.55721383]